lending/lending_fUSD_20251218
["ID","MTS","AMOUNT","RATE_DAILY","PERIOD"]
[398987272,1766046850439,-500.0,0.00041095,120]
[398987273,1766046850487,-384.23565995,0.00041095,120]
[398987274,1766046850535,-500.0,0.00041095,120]
[398987275,1766046850582,-502.52476509,0.00041095,120]
[398987276,1766046850629,-273.350345,0.00041095,120]
[398987277,1766046850674,-501.83769316,0.00041095,120]
[398987278,1766046850720,-500.0,0.00041095,120]
[398987279,1766046850766,-500.0,0.00041095,120]
[398987280,1766046850813,-522.73269168,0.00041095,120]
[398987281,1766046850857,-155.48605566,0.00041095,120]
[398987282,1766046850904,-500.17181592,0.00041095,120]
[398987283,1766046850956,-500.0,0.00041095,120]
[398987284,1766046851008,-500.0,0.00041095,120]
[398987285,1766046851056,-500.0,0.00041095,120]
[398987286,1766046851103,-291.59056321,0.00041095,120]
[398987287,1766046851148,-500.83352064,0.00041095,120]
[398987288,1766046851198,-500.0,0.00041095,120]
[398987289,1766046851250,-500.0,0.00041095,120]
[398987290,1766046851302,-500.0,0.00041095,120]
[398987291,1766046851352,-583.8217758,0.00041095,120]
[398987292,1766046851401,-185.49071215,0.00041095,120]
[398987293,1766046851455,-539.46660578,0.00041095,120]
[398987294,1766046851506,-500.0,0.00041095,120]
[398987295,1766046851555,-500.0,0.00041095,120]
[398987296,1766046851608,-563.54121357,0.00041095,120]
[398987297,1766046851659,-501.79715079,0.00041095,120]
[398987298,1766046851711,-508.65958018,0.00041095,120]
[398987299,1766046851763,-500.0,0.00041095,120]
[398987300,1766046851812,-500.0,0.00041095,120]
[398987301,1766046851859,-500.0,0.00041095,120]
[398987302,1766046851909,-498.86069902,0.00041095,120]
[398987303,1766046851963,-417.60112675,0.00041095,120]
[398987304,1766046852019,-500.99542124,0.00041095,30]
[398987305,1766046852071,-500.0,0.00041095,120]
[398987306,1766046852120,-500.0,0.00041095,120]
[398987307,1766046852170,-500.0,0.00041095,120]
[398987308,1766046852223,-500.0,0.00041095,120]
[398987309,1766046852278,-543.13426772,0.00041095,120]
[398987310,1766046852333,-500.0,0.00041095,120]
[398987311,1766046852386,-500.0,0.00041095,120]
[398987312,1766046852436,-256.88595877,0.00041095,120]
[398987313,1766046852486,-500.75266533,0.00041095,120]
[398987314,1766046852541,-624.11582186,0.00041095,120]
[398987315,1766046852597,-501.67937211,0.00041095,120]
[398987316,1766046852645,-503.48838895,0.00041095,120]
[398987317,1766046852688,-511.41039772,0.00041095,120]
[398987318,1766046852731,-500.0,0.00041095,120]
[398987319,1766046852776,-229.14487737,0.00041095,120]
[398987320,1766046852819,-500.0,0.00041095,120]
[398987321,1766046852865,-406.08823156,0.00041095,120]
[398987322,1766046852912,-501.74948821,0.00041095,120]
[398987323,1766046852959,-500.0,0.00041095,120]
[398987324,1766046853005,-500.0,0.00041095,120]
[398987325,1766046853049,-502.67119494,0.00041095,120]
[398987326,1766046853092,-216.00975177,0.00041095,120]
[398987327,1766046853133,-500.80201159,0.00041095,120]
[398987328,1766046853174,-500.4698003,0.00041095,120]
[398987329,1766046853216,-508.49954888,0.00041095,120]
[398987330,1766046853258,-500.0,0.00041095,120]
[398987331,1766046853303,-500.0,0.00041095,120]
[398987332,1766046853348,-500.74726918,0.00041095,120]
[398987333,1766046853392,-198.6102675,0.00041095,120]
[398987334,1766046853436,-500.40461421,0.00041095,120]
[398987335,1766046853485,-500.0,0.00041095,120]
[398987336,1766046853532,-500.0,0.00041095,120]
[398987337,1766046853582,-500.0,0.00041095,120]
[398987338,1766046853628,-500.0,0.00041095,120]
[398987339,1766046853675,-500.0,0.00041095,120]
[398987340,1766046853720,-500.0,0.00041095,120]
[398987341,1766046853764,-605.05260368,0.00041095,120]
[398987342,1766046853807,-500.0,0.00041095,120]
[398987343,1766046853854,-500.0,0.00041095,120]
[398987344,1766046853898,-281.87733998,0.00041095,120]
[398987345,1766046853940,-500.46606662,0.00041095,120]
[398987346,1766046853983,-503.17010565,0.00041095,120]
[398987347,1766046854496,-502.26134208,0.00041095,120]
[398987348,1766046854555,-500.0,0.00041095,120]
[398987349,1766046854603,-500.0,0.00041095,120]
[398987350,1766046854649,-150.8975363,0.00041095,120]
[398987351,1766046854694,-500.0,0.00041095,120]
[398987352,1766046854739,-500.0,0.00041095,120]
[398987353,1766046854780,-500.0,0.00041095,120]
[398987354,1766046854820,-496.06510576,0.00041095,120]
[398987355,1766046854861,-500.0,0.00041095,120]
[398987356,1766046854905,-500.0,0.00041095,120]
[398987357,1766046854950,-500.0,0.00041095,120]
[398987358,1766046854995,-500.0,0.00041095,120]
[398987359,1766046855044,-500.0,0.00041095,120]
[398987360,1766046855092,-500.0,0.00041095,120]
[398987361,1766046855143,-500.0,0.00041095,120]
[398987362,1766046855193,-500.0,0.00041095,120]
[398987363,1766046855245,-642.69475339,0.00041095,120]
[398987364,1766046855297,-503.25729501,0.00041095,120]
[398987365,1766046855350,-500.0,0.00041095,120]
[398987366,1766046855402,-500.0,0.00041095,120]
[398987368,1766046855458,-500.0,0.00041095,120]
[398987369,1766046855510,-392.10667543,0.00041095,120]
[398987370,1766046855562,-500.90229013,0.00041095,120]
[398987371,1766046855613,-500.52706625,0.00041095,120]
[398987372,1766046855666,-500.95087737,0.00041095,120]
[398987373,1766046855716,-535.41431451,0.00041095,120]
[398987374,1766046855765,-576.63792633,0.00041095,120]
[398987375,1766046855816,-501.29545005,0.00041095,120]
[398987376,1766046855865,-536.6409352,0.00041095,120]
[398987377,1766046855914,-502.53801728,0.00041095,120]
[398987378,1766046855962,-501.15972217,0.00041095,120]
[398987379,1766046856005,-502.87135649,0.00041095,120]
[398987380,1766046856046,-500.0,0.00041095,120]
[398987381,1766046856086,-500.0,0.00041095,120]
[398987382,1766046856125,-500.0,0.00041095,120]
[398987383,1766046856166,-463.81281139,0.00041095,120]
[398987384,1766046856209,-500.21090139,0.00041095,120]
[398987385,1766046856252,-500.9082469,0.00041095,120]
[398987386,1766046856292,-500.0,0.00041095,120]
[398987387,1766046856333,-500.0,0.00041095,120]
[398987388,1766046856377,-571.60408849,0.00041095,120]
[398987389,1766046856422,-500.95110433,0.00041095,120]
[398987390,1766046856470,-578.79997718,0.00041095,120]
[398987391,1766046856510,-500.0,0.00041095,120]
[398987392,1766046856552,-643.63097994,0.00041095,120]
[398987393,1766046856590,-500.18582078,0.00041095,120]
[398987394,1766046856630,-500.0,0.00041095,120]
[398987395,1766046856669,-310.77136278,0.00041095,120]
[398987396,1766046856709,-514.55586798,0.00041095,120]
[398987397,1766046856750,-500.0,0.00041095,120]
[398987398,1766046856788,-501.59082844,0.00041095,120]
[398987399,1766046856827,-500.0,0.00041095,120]
[398987400,1766046856865,-500.0,0.00041095,120]
[398987401,1766046856903,-500.0,0.00041095,120]
[398987402,1766046856941,-500.0,0.00041095,120]
[398987403,1766046856980,-190.0203614,0.00041095,120]
[398987404,1766046857021,-500.0,0.00041095,120]
[398987405,1766046857061,-500.50142238,0.00041095,120]
[398987406,1766046857101,-500.0,0.00041095,120]
[398987407,1766046857141,-500.0,0.00041095,120]
[398987408,1766046857185,-500.0,0.00041095,120]
[398987409,1766046857227,-500.0,0.00041095,120]
[398987410,1766046857268,-500.0,0.00041095,120]
[398987411,1766046857309,-500.0,0.00041095,120]
[398987412,1766046857350,-500.0,0.00041095,120]
[398987413,1766046857407,-490.88881477,0.00041095,120]
[398987414,1766046857576,-563.63022824,0.00041095,120]
[398987415,1766046857621,-500.23920257,0.00041095,120]
[398987416,1766046857662,-501.93610796,0.00041095,120]
[398987417,1766046857703,-541.97681739,0.00041095,120]
[398987418,1766046857747,-500.0,0.00041095,120]
[398987419,1766046857789,-500.0,0.00041095,120]
[398987420,1766046857830,-500.57359179,0.00041095,120]
[398987421,1766046857870,-381.49944598,0.00041095,120]
[398987422,1766046857908,-500.0,0.00041095,120]
[398987423,1766046857949,-500.58806816,0.00041095,120]
[398987424,1766046857992,-180.84592849,0.00041095,120]
[398987425,1766046858038,-403.25064483,0.00041095,120]
[398987426,1766046858085,-522.58056966,0.00041095,120]
[398987427,1766046858129,-500.0,0.00041095,120]
[398987428,1766046858172,-501.21564121,0.00041095,120]
[398987429,1766046858218,-500.0,0.00041095,120]
[398987430,1766046858264,-500.41274744,0.00041095,120]
[398987431,1766046858308,-500.0,0.00041095,120]
[398987432,1766046858351,-500.0,0.00041095,120]
[398987433,1766046858397,-419.42081174,0.00041095,120]
[398987434,1766046858446,-500.0,0.00041095,120]
[398987435,1766046858497,-213.4270339,0.00041095,120]
[398987436,1766046858543,-503.77364055,0.00041095,120]
[398987437,1766046858585,-501.11166141,0.00041095,120]
[398987438,1766046858627,-500.0,0.00041095,120]
[398987439,1766046858669,-500.0,0.00041095,120]
[398987440,1766046858712,-500.0,0.00041095,120]
[398987441,1766046858754,-500.0,0.00041095,120]
[398987442,1766046858796,-500.0,0.00041095,120]
[398987443,1766046858837,-500.0,0.00041095,120]
[398987444,1766046858878,-501.04542423,0.00041095,120]
[398987445,1766046858920,-504.19724871,0.00041095,120]
[398987446,1766046858964,-532.4138713,0.00041095,120]
[398987447,1766046859010,-500.0,0.00041095,120]
[398987448,1766046859055,-233.02979476,0.00041095,120]
[398987449,1766046859098,-500.0,0.00041095,120]
[398987450,1766046859143,-500.0,0.00041095,120]
[398987451,1766046859190,-163.25,0.00041095,120]
[398987452,1766046859237,-233.91484072,0.00041095,120]
[398987453,1766046859284,-500.0,0.00041095,120]
[398987454,1766046859330,-500.0,0.00041095,120]
[398987455,1766046859375,-500.0,0.00041095,120]
[398987456,1766046859417,-500.0,0.00041095,120]
[398987457,1766046859457,-501.37917509,0.00041095,120]
[398987458,1766046859499,-500.0,0.00041095,120]
[398987459,1766046859540,-220.85787864,0.00041095,120]
[398987460,1766046859582,-500.0,0.00041095,120]
[398987461,1766046859622,-565.78114526,0.00041095,120]
[398987462,1766046859661,-500.0,0.00041095,120]
[398987463,1766046859700,-506.43462613,0.00041095,120]
[398987464,1766046859738,-501.87421361,0.00041095,120]
[398987465,1766046859776,-500.0,0.00041095,120]
[398987466,1766046859814,-500.0,0.00041095,120]
[398987467,1766046859856,-500.0,0.00041095,120]
[398987468,1766046859895,-572.9265888,0.00041095,120]
[398987469,1766046859934,-501.88606571,0.00041095,120]
[398987470,1766046859973,-500.0,0.00041095,120]
[398987471,1766046860014,-172.66855964,0.00041095,120]
[398987472,1766046860055,-500.0,0.00041095,120]
[398987473,1766046860098,-502.14192316,0.00041095,120]
[398987474,1766046860143,-500.4484608,0.00041095,120]
[398987475,1766046860194,-500.0,0.00041095,120]
[398987476,1766046860249,-502.50795249,0.00041095,120]
[398987477,1766046860299,-500.0,0.00041095,120]
[398987478,1766046860347,-500.0,0.00041095,120]
[398987479,1766046860396,-500.0,0.00041095,120]
[398987480,1766046860444,-502.13826048,0.00041095,120]
[398987481,1766046860489,-406.22366921,0.00041095,120]
[398987482,1766046860530,-638.06558689,0.00041095,120]
[398987483,1766046860572,-500.0,0.00041095,120]
[398987484,1766046860613,-424.27176898,0.00041095,120]
[398987485,1766046860657,-500.0,0.00041095,120]
[398987486,1766046860698,-500.0,0.00041095,120]
[398987487,1766046860742,-170.23627307,0.00041095,120]
[398987488,1766046860784,-592.34970476,0.00041095,120]
[398987489,1766046860827,-500.0,0.00041095,120]
[398987490,1766046860870,-593.64866186,0.00041095,120]
[398987491,1766046860911,-215.97633053,0.00041095,120]
[398987492,1766046860957,-500.0,0.00041095,120]
[398987493,1766046861002,-192.01072329,0.00041095,120]
[398987494,1766046861062,-500.0,0.00041095,120]
[398987495,1766046861107,-305.56310649,0.00041095,120]
[398987496,1766046861149,-500.35961126,0.00041095,120]
[398987497,1766046861191,-434.76945156,0.00041095,120]
[398987498,1766046861237,-500.0,0.00041095,120]
[398987499,1766046861283,-500.0,0.00041095,120]
[398987500,1766046861327,-500.0,0.00041095,120]
[398987501,1766046861373,-500.0,0.00041095,120]
[398987502,1766046861419,-421.55843167,0.00041095,120]
[398987503,1766046861471,-568.21934241,0.00041095,120]
[398987504,1766046861514,-539.88835434,0.00041095,120]
[398987505,1766046861556,-502.01157961,0.00041095,120]
[398987506,1766046861598,-500.0,0.00041095,120]
[398987507,1766046861837,-500.0,0.00041095,120]
[398987508,1766046861891,-500.0,0.00041095,120]
[398987509,1766046861937,-500.0,0.00041095,120]
[398987510,1766046861981,-500.0,0.00041095,120]
[398987511,1766046862020,-500.0,0.00041095,120]
[398987512,1766046862059,-500.0,0.00041095,120]
[398987513,1766046862098,-354.89318567,0.00041095,120]
[398987514,1766046862141,-500.0,0.00041095,120]
[398987515,1766046862183,-500.0,0.00041095,120]
[398987516,1766046862227,-500.35830066,0.00041095,120]
[398987517,1766046862279,-492.22886314,0.00041095,120]
[398987518,1766046862322,-500.0,0.00041095,120]
[398987519,1766046862365,-500.0,0.00041095,120]
[398987520,1766046862408,-500.0,0.00041095,120]
[398987521,1766046862458,-501.19210475,0.00041095,120]
[398987522,1766046862499,-502.20451818,0.00041095,120]
[398987523,1766046862539,-500.0,0.00041095,120]
[398987524,1766046862579,-500.0,0.00041095,120]
[398987525,1766046862618,-271.28389422,0.00041095,120]
[398987526,1766046862658,-500.0,0.00041095,120]
[398987527,1766046862699,-500.60171045,0.00041095,120]
[398987528,1766046862739,-500.0,0.00041095,120]
[398987529,1766046862778,-554.36536322,0.00041095,120]
[398987530,1766046862817,-500.56320183,0.00041095,120]
[398987531,1766046862855,-386.16516886,0.00041095,120]
[398987532,1766046862894,-500.0,0.00041095,120]
[398987533,1766046862937,-500.0,0.00041095,120]
[398987534,1766046862981,-500.0,0.00041095,120]
[398987535,1766046863030,-500.53811108,0.00041095,120]
[398987536,1766046863079,-500.94337867,0.00041095,120]
[398987537,1766046863127,-500.0,0.00041095,120]
[398987538,1766046863173,-500.0,0.00041095,120]
[398987539,1766046863219,-163.83633512,0.00041095,120]
[398987540,1766046863267,-500.0,0.00041095,120]
[398987541,1766046863312,-500.0,0.00041095,120]
[398987542,1766046863359,-160.55768125,0.00041095,120]
[398987543,1766046863408,-500.0,0.00041095,120]
[398987544,1766046863461,-500.0,0.00041095,120]
[398987545,1766046863511,-500.0,0.00041095,120]
[398987546,1766046863562,-191.37210655,0.00041095,120]
[398987547,1766046863612,-500.0,0.00041095,120]
[398987548,1766046863658,-230.77864161,0.00041095,120]
[398987549,1766046863705,-565.3,0.00041095,120]
[398987550,1766046863758,-500.0,0.00041095,120]
[398987551,1766046863803,-500.0,0.00041095,120]
[398987552,1766046863847,-355.97722038,0.00041095,120]
[398987553,1766046863890,-500.0,0.00041095,120]
[398987554,1766046863934,-191.38071099,0.00041095,120]
[398987555,1766046863980,-501.77939811,0.00041095,120]
[398987556,1766046864025,-500.0,0.00041095,120]
[398987557,1766046864071,-501.1974994,0.00041095,120]
[398987558,1766046864115,-500.0,0.00041095,120]
[398987559,1766046864162,-500.0,0.00041095,120]
[398987560,1766046864211,-500.0,0.00041095,120]
[398987561,1766046864262,-294.79142063,0.00041095,120]
[398987562,1766046864312,-500.93035185,0.00041095,120]
[398987563,1766046864363,-502.77503244,0.00041095,120]
[398987564,1766046864413,-500.0,0.00041095,120]
[398987565,1766046864465,-570.33226972,0.00041095,120]
[398987566,1766046864509,-500.0,0.00041095,120]
[398987567,1766046864552,-500.0,0.00041095,120]
[398987568,1766046864594,-500.0,0.00041095,120]
[398987569,1766046864636,-500.0,0.00041095,120]
[398987570,1766046864678,-500.0,0.00041095,120]
[398987571,1766046864720,-500.0,0.00041095,120]
[398987572,1766046864763,-500.0,0.00041095,120]
[398987573,1766046864804,-500.0,0.00041095,120]
[398987574,1766046864845,-500.0,0.00041095,120]
[398987575,1766046864888,-484.76891284,0.00041095,120]
[398987576,1766046864933,-500.0,0.00041095,120]
[398987577,1766046864982,-500.0,0.00041095,120]
[398987578,1766046865035,-500.0,0.00041095,120]
[398987579,1766046865081,-360.18530292,0.00041095,120]
[398987580,1766046865128,-197.7821076,0.00041095,120]
[398987581,1766046865176,-503.20919386,0.00041095,120]
[398987582,1766046865223,-501.87101535,0.00041095,120]
[398987583,1766046865272,-518.76173533,0.00041095,120]
[398987584,1766046865319,-500.0,0.00041095,120]
[398987585,1766046865365,-276.71712256,0.00041095,120]
[398987586,1766046865414,-500.0,0.00041095,120]
[398987587,1766046865463,-511.23252255,0.00041095,120]
[398987588,1766046865506,-501.98618488,0.00041095,120]
[398987589,1766046865550,-500.0,0.00041095,120]
[398987590,1766046865594,-501.85975163,0.00041095,120]
[398987591,1766046865638,-500.0,0.00041095,120]
[398987592,1766046866079,-500.0,0.00041095,120]
[398987593,1766046866122,-500.0,0.00041095,120]
[398987594,1766046866166,-500.0,0.00041095,120]
[398987595,1766046866213,-544.347079,0.00041095,120]
[398987596,1766046866262,-499.7249644,0.00041095,120]
[398987597,1766046866311,-500.75798308,0.00041095,120]
[398987598,1766046866360,-500.40365657,0.00041095,120]
[398987599,1766046866409,-500.0,0.00041095,120]
[398987600,1766046866472,-500.0,0.00041095,120]
[398987601,1766046866533,-500.0,0.00041095,120]
[398987602,1766046866587,-578.47275915,0.00041095,120]
[398987603,1766046866635,-500.24524727,0.00041095,120]
[398987604,1766046866681,-500.82062903,0.00041095,120]
[398987605,1766046866728,-500.0,0.00041095,120]
[398987606,1766046866776,-500.0,0.00041095,120]
[398987607,1766046866820,-500.0,0.00041095,120]
[398987608,1766046866861,-244.65729397,0.00041095,120]
[398987609,1766046866900,-183.62446289,0.00041095,120]
[398987610,1766046866938,-500.0,0.00041095,120]
[398987611,1766046866977,-500.0,0.00041095,120]
[398987612,1766046867017,-500.0,0.00041095,120]
[398987613,1766046867058,-410.99352856,0.00041095,120]
[398987614,1766046867098,-500.0,0.00041095,120]
[398987615,1766046867139,-501.40639761,0.00041095,120]
[398987616,1766046867185,-616.91429635,0.00041095,120]
[398987617,1766046867233,-500.66704843,0.00041095,120]
[398987618,1766046867278,-500.0,0.00041095,120]
[398987619,1766046867323,-587.49164144,0.00041095,120]
[398987620,1766046867365,-500.74274468,0.00041095,120]
[398987621,1766046867407,-501.21537438,0.00041095,120]
[398987622,1766046867450,-500.0,0.00041095,120]
[398987623,1766046867489,-582.68995023,0.00041095,120]
[398987624,1766046867529,-585.64294945,0.00041095,120]
[398987625,1766046867570,-500.0,0.00041095,120]
[398987626,1766046867609,-500.0,0.00041095,120]
[398987627,1766046867648,-500.0,0.00041095,120]
[398987628,1766046867687,-500.0,0.00041095,120]
[398987629,1766046867725,-500.0,0.00041095,120]
[398987630,1766046867767,-168.41480437,0.00041095,120]
[398987631,1766046867806,-500.0,0.00041095,120]
[398987632,1766046867846,-500.65678803,0.00041095,120]
[398987633,1766046867887,-500.0,0.00041095,120]
[398987634,1766046867930,-500.0,0.00041095,120]
[398987635,1766046867973,-232.73621566,0.00041095,120]
[398987636,1766046868016,-500.67697076,0.00041095,120]
[398987637,1766046868063,-500.0,0.00041095,120]
[398987638,1766046868113,-501.25262657,0.00041095,120]
[398987639,1766046868159,-614.45746119,0.00041095,120]
[398987640,1766046868204,-500.0,0.00041095,120]
[398987641,1766046868252,-500.0,0.00041095,120]
[398987642,1766046868301,-500.35455735,0.00041095,120]
[398987643,1766046868349,-318.09149557,0.00041095,120]
[398987644,1766046868397,-517.99772108,0.00041095,120]
[398987645,1766046868444,-500.0,0.00041095,120]
[398987646,1766046868490,-500.0,0.00041095,120]
[398987647,1766046868535,-500.0,0.00041095,120]
[398987648,1766046868585,-622.81083725,0.00041095,120]
[398987649,1766046868635,-500.0,0.00041095,120]
[398987650,1766046868685,-500.0,0.00041095,120]
[398987651,1766046868733,-500.0,0.00041095,120]
[398987652,1766046868779,-498.70004018,0.00041095,120]
[398987653,1766046868825,-154.93404914,0.00041095,120]
[398987654,1766046868867,-410.08023003,0.00041095,120]
[398987655,1766046868908,-500.0,0.00041095,120]
[398987656,1766046868949,-452.12801788,0.00041095,120]
[398987657,1766046868990,-500.0,0.00041095,120]
[398987658,1766046869154,-497.5783229,0.00041095,120]
[398987659,1766046869202,-500.0,0.00041095,120]
[398987660,1766046869249,-500.0,0.00041095,120]
[398987661,1766046869292,-516.64756116,0.00041095,120]
[398987662,1766046869338,-500.0,0.00041095,120]
[398987663,1766046869383,-500.0,0.00041095,120]
[398987664,1766046869427,-500.0,0.00041095,120]
[398987665,1766046869467,-339.41685605,0.00041095,120]
[398987666,1766046869508,-500.71903058,0.00041095,120]
[398987667,1766046869548,-500.34111889,0.00041095,120]
[398987668,1766046869589,-500.98854599,0.00041095,120]
[398987669,1766046869628,-501.20544378,0.00041095,120]
[398987670,1766046869669,-500.0,0.00041095,120]
[398987671,1766046869708,-500.0,0.00041095,120]
[398987672,1766046869750,-500.0,0.00041095,120]
[398987673,1766046869789,-500.0,0.00041095,120]
[398987674,1766046869826,-249.15612401,0.00041095,120]
[398987675,1766046869864,-500.0,0.00041095,120]
[398987676,1766046869902,-500.28773579,0.00041095,120]
[398987677,1766046869941,-500.0,0.00041095,120]
[398987678,1766046869980,-587.45376634,0.00041095,120]
[398987679,1766046870020,-500.0,0.00041095,120]
[398987680,1766046870061,-500.0,0.00041095,120]
[398987681,1766046870100,-312.83837378,0.00041095,120]
[398987682,1766046870142,-500.0,0.00041095,120]
[398987683,1766046870184,-438.83990038,0.00041095,120]
[398987684,1766046870224,-536.75632227,0.00041095,120]
[398987685,1766046870265,-500.0,0.00041095,120]
[398987686,1766046870305,-627.50408896,0.00041095,120]
[398987687,1766046870345,-500.13648556,0.00041095,120]
[398987688,1766046870386,-523.01342529,0.00041095,60]
[398987689,1766046870426,-554.07247224,0.00041095,120]
[398987690,1766046870465,-501.04303321,0.00041095,120]
[398987691,1766046870506,-500.0,0.00041095,120]
[398987692,1766046870547,-482.37001604,0.00041095,120]
[398987693,1766046870587,-500.0,0.00041095,120]
[398987694,1766046870628,-500.0,0.00041095,120]
[398987695,1766046870667,-500.0,0.00041095,120]
[398987696,1766046870706,-550.67749305,0.00041095,120]
[398987697,1766046870745,-500.0,0.00041095,120]
[398987698,1766046870784,-500.0,0.00041095,120]
[398987699,1766046870822,-500.0,0.00041095,120]
[398987700,1766046870860,-282.62,0.00041095,120]
[398987701,1766046870900,-500.0,0.00041095,120]
[398987702,1766046870939,-500.0,0.00041095,120]
[398987703,1766046870979,-500.0,0.00041095,120]
[398987704,1766046871019,-500.62926493,0.00041095,120]
[398987705,1766046871062,-500.0,0.00041095,120]
[398987706,1766046871108,-526.40882104,0.00041095,120]
[398987707,1766046871157,-537.07792201,0.00041095,120]
[398987708,1766046871210,-501.06842289,0.00041095,120]
[398987709,1766046871271,-500.0,0.00041095,120]
[398987710,1766046871343,-578.04655892,0.00041095,120]
[398987711,1766046871395,-552.39730394,0.00041095,120]
[398987712,1766046871446,-531.34924467,0.00041095,120]
[398987713,1766046871495,-500.0,0.00041095,120]
[398987714,1766046871537,-500.0,0.00041095,120]
[398987715,1766046871579,-241.31088114,0.00041095,120]
[398987716,1766046871623,-500.0,0.00041095,120]
[398987717,1766046871667,-500.0,0.00041095,120]
[398987718,1766046871712,-502.52241268,0.00041095,120]
[398987719,1766046871757,-500.0,0.00041095,120]
[398987720,1766046871802,-527.85858496,0.00041095,120]
[398987721,1766046871844,-500.0,0.00041095,120]
[398987722,1766046871886,-501.02561984,0.00041095,120]
[398987723,1766046871926,-500.0,0.00041095,120]
[398987724,1766046871967,-173.00154507,0.00041095,120]
[398987725,1766046872008,-500.0,0.00041095,120]
[398987726,1766046872051,-502.48591426,0.00041095,120]
[398987727,1766046872094,-500.0,0.00041095,120]
[398987728,1766046872135,-500.0,0.00041095,120]
[398987729,1766046872176,-500.0,0.00041095,120]
[398987730,1766046872224,-500.0,0.00041095,120]
[398987731,1766046872276,-500.0,0.00041095,120]
[398987732,1766046872324,-474.78971544,0.00041095,120]
[398987733,1766046872371,-500.0,0.00041095,120]
[398987734,1766046872419,-500.0,0.00041095,120]
[398987735,1766046872467,-380.19146994,0.00041095,120]
[398987736,1766046872515,-500.0,0.00041095,120]
[398987737,1766046872561,-500.15583258,0.00041095,120]
[398987738,1766046872603,-502.48375905,0.00041095,120]
[398987739,1766046872643,-279.75378901,0.00041095,120]
[398987740,1766046872684,-500.96208892,0.00041095,120]
[398987741,1766046872731,-629.27061222,0.00041095,120]
[398987742,1766046872781,-500.25260628,0.00041095,120]
[398987743,1766046872827,-501.17999532,0.00041095,120]
[398987744,1766046872874,-500.0,0.00041095,120]
[398987745,1766046872926,-500.0,0.00041095,120]
[398987746,1766046872978,-423.97093059,0.00041095,120]
[398987747,1766046873032,-500.0,0.00041095,120]
[398987748,1766046873083,-231.04500275,0.00041095,120]
[398987749,1766046873131,-500.0,0.00041095,120]
[398987750,1766046873183,-491.32637238,0.00041095,120]
[398987751,1766046873236,-500.0,0.00041095,120]
[398987752,1766046873466,-500.0,0.00041095,120]
[398987753,1766046873518,-523.36071144,0.00041095,120]
[398987754,1766046873568,-500.0,0.00041095,120]
[398987755,1766046873618,-558.47019893,0.00041095,120]
[398987756,1766046873666,-500.34304458,0.00041095,120]
[398987757,1766046873714,-500.0,0.00041095,120]
[398987758,1766046873768,-500.0,0.00041095,120]
[398987759,1766046873821,-500.0,0.00041095,120]
[398987760,1766046873864,-336.63,0.00041095,120]
[398987761,1766046873907,-500.0,0.00041095,120]
[398987762,1766046873947,-500.0,0.00041095,120]
[398987763,1766046873988,-530.12169744,0.00041095,120]
[398987764,1766046874038,-520.35550036,0.00041095,120]
[398987765,1766046874081,-500.0,0.00041095,120]
[398987766,1766046874123,-500.0,0.00041095,120]
[398987767,1766046874168,-256.7414816,0.00041095,120]
[398987768,1766046874212,-500.0,0.00041095,120]
[398987769,1766046874256,-500.0,0.00041095,120]
[398987770,1766046874302,-422.17839347,0.00041095,120]
[398987771,1766046874347,-533.64563839,0.00041095,120]
[398987772,1766046874392,-555.91781477,0.00041095,120]